Cogmind - Beta 15 @@@ ROGUE MODE // 2025.06.06 @ 21:10:55 Player: Florist Result: Destroyed by D-53 Grenadier with Mini Grenade Launcher Performance ------------- Evolutions (0) 0 Regions Visited (2) 400 Robots Destroyed (27) 135 Value Destroyed (519) 519 Prototype IDs (0) 0 Alien Tech Used (0) 0 Bonus (0) 0 TOTAL SCORE: 1054 Bonus ------- None Cogmind --------- Core Integrity 0/250 Matter 243/300 Energy 100/100 System Corruption 1% Temperature Cool (0) Movement Core (200) Ox3 Location -10/Mines Parts ------- > --- POWER (1) -------- (None) > --- PROPULSION (2) --- (None) > --- UTILITY (2) ------ Medium Storage Unit > --- WEAPON (2) ------- (None) > --- INVENTORY (10) --- Light Ion Engine Aluminum Leg Aluminum Leg Improved Heat Sink Sensor Array Signal Interpreter Light Cannon Light Cannon Light Cannon Hammer Peak State ------------ > --- POWER ------------ Light Ion Engine > --- PROPULSION ------- Light Treads Light Treads > --- UTILITY ---------- Medium Storage Unit Seismic Detector > --- WEAPON ----------- Light Cannon Rocket Launcher > --- INVENTORY -------- Light Ion Engine Aluminum Leg Aluminum Leg Improved Heat Sink Sensor Array Signal Interpreter Light Cannon Light Cannon Grenade Launcher Hammer [Rating: 9] Favorites ----------- Power Light Ion Engine Engine Light Ion Engine Propulsion Light Treads Treads Light Treads Utility Medium Storage Unit Device Seismic Detector Storage Medium Storage Unit Weapon Light Cannon Energy Gun Medium Laser Ballistic Gun Assault Rifle Ballistic Cannon Light Cannon Launcher Grenade Launcher Impact Weapon Hammer Build | -11 -10 -10 ------- Run | Yrd Mat Min Slots Evolved . | . . . Power . | . . . Propulsion . | . . . Utility . | . . . Weapon . | . . . Parts Attached 15 | 7 6 2 Power 1 | 1 . . Engine 1 | 1 . . Core . | . . . Reactor . | . . . Propulsion 2 | 2 . . Treads 2 | 2 . . Leg . | . . . Wheel . | . . . Hover . | . . . Flight . | . . . Utility 4 | 2 2 . Device 2 | 1 1 . Storage 2 | 1 1 . Processor . | . . . Hackware . | . . . Protection . | . . . Artifact . | . . . Weapon 8 | 2 4 2 Energy Gun 1 | 1 . . Energy Cannon . | . . . Ballistic Gun 1 | 1 . . Ballistic Cannon 3 | . 3 . Launcher 2 | . . 2 Special Weapon . | . . . Impact Weapon 1 | . 1 . Slashing Weapon . | . . . Piercing Weapon . | . . . Special Melee Weapon . | . . . Unidentified Prototypes . | . . . Parts Lost 6 | . . 6 Power 1 | . . 1 Propulsion 2 | . . 2 Utility 1 | . . 1 Weapon 2 | . . 2 Highest Loss Streak 6 | . . 6 To Critical Strikes . | . . . Average Backups 8 | 2 8 10 Power . | . 1 1 Propulsion 1 | 1 2 2 Utility 2 | . 2 3 Weapon 2 | . 2 3 Tool/Special . | . . . Unused Backups 8 | . 1 7 Power 1 | . . 1 Propulsion 2 | . . 2 Utility 4 | . 1 3 Weapon 1 | . . 1 Tool/Special . | . . . Average Slot Usage (%) 93 | . 90 98 Engine 13 | . 14 13 Treads 27 | . 28 27 Device 7 | . 5 13 Storage 14 | . 14 14 Ballistic Gun 4 | . 5 . Ballistic Cannon 22 | . 19 27 Peak Build Rating 9 | 7 8 9 Average Rating 7 | 5 6 7 On Entrance 4 | . 7 7 Naked Turns . | . . . Heaviest Build 23 | 13 23 21 Greatest Support 40 | 40 40 40 Greatest Overweight (x) . | . . . Average Overweight (x) . | . . . Largest Inventory Capacity 10 | 8 10 10 Average Capacity 9 | 7 9 10 Most Carried 10 | 4 10 10 Average Carried 8 | 2 8 9 Final Capacity 10 | 8 10 10 Final Carried 10 | 4 10 10 Class Distribution -------------------- 100% | Mutant Dominant Class ---------------- Mutant | -10/Materials Mutant | -10/Mines Resources | -11 -10 -10 ----------- Run | Yrd Mat Min Matter Collected 716 | 264 393 59 Remotely . | . . . Salvage Created 706 | 90 524 92 Parts 50 | 10 36 4 Haulers Intercepted 2 | . 2 . Recyclers Shooed . | . . . Parts Field Recycled . | . . . Retrieved Matter . | . . . Parts Self-Destructed . | . . . Prevented . | . . . Kills | -11 -10 -10 ------- Run | Yrd Mat Min Combat Hostiles Destroyed 15 | . 13 2 Guns 5 | . 5 . Cannons 10 | . 8 2 Classes Destroyed 7 | 1 5 1 Worker 1 | . . 1 Tunneler 4 | 4 . . Hauler 2 | . 2 . Recycler 2 | . 1 1 Watcher 3 | . 3 . Swarmer 5 | . 5 . Grunt 10 | . 8 2 Best Kill Streak 3 | 2 3 2 Combat Bots Only 2 | . 2 2 Max Kills in Single Turn 2 | 1 2 2 Gunslinging 1 | . 1 . Exploded . | . . . Melee . | . . . Uniques/NPCs Destroyed . | . . . Combat | -11 -10 -10 -------- Run | Yrd Mat Min Hostile Shots Fired 71 | . 49 22 Missed 20 | . 16 4 Hits 51 | . 33 18 Melee 1 | . . 1 Projectile 50 | . 33 17 AOE 10 | . . 10 Damage Taken 928 | . 326 602 Core 262 | . 52 210 Absorbed by Shields . | . . . Core Remaining (%) 100 | 100 . . Volleys Fired 70 | 13 46 11 Largest 2 | 2 2 2 Hottest 70 | 70 70 63 Shots Fired 136 | 26 89 21 Gun 69 | 26 43 . Cannon 62 | . 46 16 Launcher 5 | . . 5 Special . | . . . Kinetic 103 | 13 74 16 Thermal 28 | 13 15 . Explosive 5 | . . 5 Electromagnetic . | . . . Robot Hit Streak 10 | 5 10 7 Robot Miss Streak 4 | 2 4 2 Penetration Max . | . . . Secondary Targets 1 | . 1 . Max Gunslinging Chain 1 | . 1 . Shots Hit Robots 74 | 15 44 15 Core Hits 38 | 4 22 12 Critical Kills . | . . . Critical Parts Destroyed . | . . . Critical Strikes 3 | . 3 . Burn 1 | . 1 . Blast 2 | . 2 . Melee Attacks 1 | . 1 . Impact 1 | . 1 . Slashing . | . . . Piercing . | . . . Sneak Attacks . | . . . Combat Hostiles . | . . . Follow-up Attacks . | . . . Damage Inflicted 1214 | 189 662 363 Guns 446 | 189 257 . Cannons 612 | . 405 207 Explosions 156 | . . 156 Melee . | . . . Ramming . | . . . Kinetic 883 | 89 587 207 Thermal 175 | 100 75 . Explosive 156 | . . 156 Electromagnetic . | . . . Impact . | . . . Slashing . | . . . Piercing . | . . . Highest Corruption . | . . . Average Corruption . | . . . Corruption Purged . | . . . Corruption Blocked . | . . . Overload Shots . | . . . Overflow Damage 10 | . 10 . Projectiles 10 | . 10 . Explosions . | . . . Melee . | . . . Knockbacks 7 | . 5 2 Impact . | . . . Kinetic 7 | . 5 2 Secondary . | . . . Self-Inflicted Damage . | . . . Shots . | . . . Rammed . | . . . Targets Rammed . | . . . Kicked . | . . . Crushed . | . . . Highest Temperature 102 | 36 102 45 Average Temperature 26 | 14 37 22 Received Heat Transfer 159 | . 87 72 Siege Activations . | . . . Martial Activations . | . . . Shielding Activations . | . . . Robots Disrupted . | . . . Combat Hostiles . | . . . Robots Corrupted . | . . . Combat Hostiles . | . . . Parts Fried . | . . . Impact Corruptions . | . . . Robots Melted . | . . . Combat Hostiles . | . . . Parts Melted 2 | 1 1 . Heat Transferred 592 | 296 296 . Parts Sabotaged . | . . . Parts Stolen . | . . . Parts Stripped . | . . . Power Chain Reactions . | . . . Alert | -11 -10 -10 ------- Run | Yrd Mat Min Maximum Alert Level . | . . . Low Security (%) 100 | 100 100 100 Level 1 . | . . . Level 2 . | . . . Level 3 . | . . . Level 4 . | . . . Level 5 . | . . . High Security . | . . . Max Security . | . . . Peak Influence 77 | 10 77 40 Initial 3 | . 3 1 Average 18 | . 26 3 Influence Increases 486 | 20 394 72 Destroy 0b10 Robot/C 300 | . 260 40 Destroy 0b10 Robot/NC 60 | 20 30 10 Destroy Leader 80 | . 70 10 Successful Hack 18 | . 18 . Disable Machine 15 | . 15 . Destroy Structure 13 | . 1 12 Influence Decreases 486 | 15 393 78 Entered New Map 7 | . 2 5 Time Decay 457 | 15 391 51 Lost Part 6 | . . 6 Lost Ally 16 | . . 16 Squads Dispatched 3 | . 3 . Investigation 1 | . 1 . Extermination . | . . . Reinforcement 2 | . 2 . Assault . | . . . Garrison . | . . . Intercept . | . . . Searches Triggered . | . . . Construction Impeded . | . . . Haulers Reinforced . | . . . Active Scanning Responses . | . . . Cargo Convoy Interrupts . | . . . Stealth | -11 -10 -10 --------- Run | Yrd Mat Min Distress Signals . | . . . Communications Jammed . | . . . Distress Signals . | . . . Times Spotted 23 | . 18 5 Peak Tracking Total 4 | . 4 3 Tactical Retreats . | . . . Traps | -11 -10 -10 ------- Run | Yrd Mat Min Traps Triggered 2 | . 2 . Indirectly . | . . . Trap Hack Attempts . | . . . Triggered . | . . . Disarmed . | . . . Reprogrammed . | . . . Reused . | . . . Traps Extracted . | . . . Installed . | . . . Triggered . | . . . Machines | -11 -10 -10 ---------- Run | Yrd Mat Min Machines Disabled 1 | . 1 . Max in Single Turn 1 | . 1 . Machines Repaired . | . . . Machines Dismantled . | . . . Machines Sabotaged . | . . . Overloaded Fab Kills . | . . . Hacking | -11 -10 -10 --------- Run | Yrd Mat Min Machines Accessed 4 | . 4 . Terminals 4 | . 4 . Fabricators . | . . . Repair Stations . | . . . Recycling Units . | . . . Scanalyzers . | . . . Garrison Access . | . . . Total Hacks 12 | . 12 . Successful 7 | . 7 . Failed 5 | . 5 . Catastrophic . | . . . Database Lockouts . | . . . Manual 10 | . 10 . Terminals 12 | . 12 . Fabricators . | . . . Repair Stations . | . . . Recycling Units . | . . . Scanalyzers . | . . . Garrison Access . | . . . Terminal Hacks 3 | . 3 . Locate Traps 1 | . 1 . Hauler Manifests 1 | . 1 . Zone Layout 1 | . 1 . Fabricator Hacks . | . . . Repair Station Hacks . | . . . Recycling Unit Hacks . | . . . Scanalyzer . | . . . Garrison Access Hacks . | . . . Unauthorized Hacks 4 | . 4 . Terminals 4 | . 4 . Botnet 4 | . 4 . Fabricators . | . . . Repair Stations . | . . . Recycling Units . | . . . Scanalyzers . | . . . Garrison Access . | . . . Data Cores Recovered . | . . . Used . | . . . Hacking Detections 2 | . 2 . Full Trace Events . | . . . Feedback Events . | . . . Feedback Blocked . | . . . Robot Schematics Acquired . | . . . Robots Built . | . . . Authchips . | . . . Time . | . . . Total Robot Build Rating . | . . . Part Schematics Acquired . | . . . Parts Built . | . . . Authchips . | . . . Time . | . . . Total Part Build Rating . | . . . Parts Repaired . | . . . Time . | . . . Parts Recycled . | . . . Recycled Matter . | . . . Retrieved Matter . | . . . Retrieved Components . | . . . Parts Scanalyzed . | . . . Part Schematics Acquired . | . . . Parts Damaged . | . . . Bothacking | -11 -10 -10 ------------ Run | Yrd Mat Min Used RIF Installer . | . . . Robots Hacked . | . . . Non-combat . | . . . Combat . | . . . Robot Hacks Applied . | . . . Relay Couplers Released . | . . . Fabnet Peak Effective % . | . . . Robots Rewired . | . . . Allies Hacked . | . . . Hacks Repelled . | . . . Allies | -11 -10 -10 -------- Run | Yrd Mat Min Total Allies 1 | . . 1 Largest Group 1 | . . 1 Highest-Rated Group 31 | . . 31 Highest-Rated Ally 31 | . . 31 Total Orders . | . . . Ally Attacks 3 | . . 3 Total Damage 42 | . . 42 Kills . | . . . Allies Corrupted . | . . . Allies Melted . | . . . Intel | -11 -10 -10 ------- Run | Yrd Mat Min Active Infowar (turns) 1077 | 66 472 539 Seismic 1077 | 66 472 539 Robot Analysis Total . | . . . Derelict Logs Recovered . | . . . Drone Launches . | . . . Drone Recoveries . | . . . Exploration | -11 -10 -10 ------------- Run | Yrd Mat Min Turns Passed 1969 | 179 1242 548 Spaces Moved 1044 | 81 653 310 Core 3 | 3 . . Treads 1041 | 78 653 310 Legs . | . . . Wheels . | . . . Hover . | . . . Flight . | . . . Fastest Speed 50 | 50 160 160 Average Speed 159 | 155 160 160 Slowest Speed 160 | 160 160 160 Overloaded Moves . | . . . Propulsion Burnouts . | . . . Robots Hopped . | . . . Potential Cave-ins . | . . . Cave-ins Triggered . | . . . Exploration Rate (%) 47 | 6 92 45 Regions Visited 2 Branch Regions 1 Pre-discovered Areas . | . . . Known Exits Taken . | . . . Unknown Exits Taken 2 | 1 1 . Scrap Searched 1 | . . 1 Spaces Dug . | . . . Terrain Destroyed 17 | . . 17 Melee . | . . . Projectile . | . . . AOE 17 | . . 17 Terrain Rammed . | . . . Walls Destroyed . | . . . Machines Disabled . | . . . Actions | -11 -10 -10 --------- Run | Yrd Mat Min Total 1210 | 104 764 342 Wait 54 | . 39 15 Move 1042 | 80 652 310 Hop . | . . . Pick Up 16 | 4 10 2 Fast Attach 8 | 7 1 . Attach 5 | . 4 1 Detach 2 | . 2 . Swap 5 | . 3 2 Drop 7 | . 6 1 Fire 70 | 13 46 11 Melee 1 | . 1 . Ram . | . . . Kick . | . . . Crush . | . . . Escape Stasis . | . . . Rewire . | . . . Trap . | . . . Miscellaneous . | . . . Route ------- -11/Scrapyard -10/Materials (discovered 4 exits: [*Mat x2] / [*Min x2]) -10/Mines (discovered 2 exits: [*Mat] / [*Exi]) History --------- Turn | Location | Event 33 | -11/Scrapyard | Discovered new exit (range 14) 180 | -11/Scrapyard | Entered Materials 304 | -10/Materials | Build established: Mutant 437 | -10/Materials | Discovered new exit (range 14) 517 | -10/Materials | Discovered new exit (range 13) 752 | -10/Materials | Discovered new exit (range 9) 1118 | -10/Materials | Discovered new exit (range 15) 1422 | -10/Materials | Entered Mines 1429 | -10/Mines | Received a Rocket Launcher from a helpful Derelict 1510 | -10/Mines | Discovered new exit (range 9) 1580 | -10/Mines | Deemed a non-threat by the Exiles lab entrance 1580 | -10/Mines | Discovered new exit (range 5) 1782 | -10/Mines | Received a Mining Laser from a helpful Derelict 1939 | -10/Mines | Assembled infested the area 1963 | -10/Mines | Core integrity fell below 50% 1969 | -10/Mines | Core integrity fell below 20% 1970 | -10/Mines | Destroyed by D-53 Grenadier with Mini Grenade Launcher Last Messages --------------- 01957_ C-30 ARC bursts open, deploying its payload. 01957_ D-53 Grenadier unfolds itself. 01960_ Lgt. Ion Engine destroyed. 01960_ K-01 Serf collects debris. 01960_ as-32511 sneak attacks. 01960_ T-07 Excavator system corrupted by crushing effect. 01962_ Lgt. Treads destroyed. 01963_ K-01 Serf destroyed. 01963_ R-06 Scavenger destroyed. 01964_ The unstable cave ceiling collapses. 01964_ R1-TAT(g) destroyed. 01966_ The unstable cave ceiling collapses. 01966_ Lgt. Treads destroyed. 01967_ The unstable cave ceiling collapses. 01968_ Rocket Launcher destroyed. 01968_ T-07 Excavator destroyed. 01970_ Seismic Detector destroyed. 01970_ System corrupted by crushing effect (+1). 01970_ Knocked back. 01970_ Grenade Launcher destroyed. Map ----- +----------------------------------------------------+ | #?????# #??????# ####### ??????????? | | ##????# #??????# #??????????????? | | ###??# #??????# #???????????????? | | ##?# #??##### # # #???????????????? | | ### ### #??# ## #? #??????????????? | | ??## ## #??# ######## #??? ????????????? | | ???## # #### #??????# #???? """ ????????????? | | ???## #??????# #??????"???????????????? | | ??## ## ## ###??????# #??????????????????????? | | ?## ### ## #????????# #??????????????????????? | | ## ####?# ## #????????# #??????????????????????? | | # ##????# ## #????????# #??????????????????????? | | ##????# ## #????????# #??????????????????????? | | ##???# ## #????????# #??????????????????????? | | # ##??# ## #????????# #??????????????????????? | | ## #### ## #????????# #?###??????????????????? | | ?## ## #????????# #?# ??????????????????? | | ??## ###### #????????# #?# #??????????????????? | | ???## ##????# #????????# #?# #??????????????????? | | ????# #?????# #??????### ### #??????????????????? | | ????## #?????# #?????## #??????????????????? | | ??????##?????# #?????# |% #??????????????????? | | ?????????????# #????## #??????????????????? | | ?????????????# #????# a #??????????????????? | | ????????###### #????# #??????????????????? | | ???#